bitfinex/quotes_BTCUSD_20250224
["timestamp","ask_amount","ask_price","bid_price","bid_amount"]
[1740379289997,0.33293315,95972.0,95971.0,0.0016994]
[1740379290155,1.92757315,95972.0,95971.0,0.0016994]
[1740379294399,1.87392384,95972.0,95969.0,8e-07]
[1740379294601,1.87392384,95972.0,95957.0,2e-07]
[1740379294602,0.306318,95958.0,95957.0,2e-07]
[1740379294807,1.95468485,95957.0,95956.0,4e-07]
[1740379295010,0.32086085,95957.0,95956.0,4e-07]
[1740379296233,0.32186085,95957.0,95956.0,4e-07]
[1740379296833,0.32386085,95957.0,95956.0,4e-07]
[1740379299823,0.32803885,95957.0,95956.0,4e-07]
[1740379302063,0.32386085,95957.0,95956.0,4e-07]
[1740379306569,0.41877333,95957.0,95956.0,4e-07]
[1740379307595,0.32386085,95957.0,95956.0,4e-07]
[1740379308435,0.01754085,95957.0,95956.0,4e-07]
[1740379308793,0.17386085,95957.0,95956.0,4e-07]
[1740379312016,0.32386085,95957.0,95956.0,4e-07]
[1740379317623,0.32471075,95957.0,95956.0,4e-07]
[1740379334160,0.58802025,95957.0,95954.0,0.0016994]
[1740379334363,0.32086385,95955.0,95954.0,0.0016994]
[1740379334554,2.47136485,95955.0,95954.0,0.0016994]
[1740379336337,2.47236485,95955.0,95954.0,0.0016994]
[1740379337294,2.47336485,95955.0,95954.0,0.0016994]
[1740379338352,2.52188727,95955.0,95954.0,0.0016994]
[1740379338790,2.43765527,95955.0,95954.0,0.0016994]
[1740379339427,2.67051715,95955.0,95954.0,0.0016994]
[1740379340776,2.67136705,95955.0,95954.0,0.0016994]
[1740379341205,2.65237005,95955.0,95954.0,0.0016994]
[1740379341407,2.74473474,95955.0,95954.0,4e-07]
[1740379341631,0.30635,95938.0,95937.0,0.0016988]
[1740379341828,0.306367,95928.0,95927.0,0.0468]
[1740379344179,0.308367,95928.0,95927.0,0.0468]
[1740379344384,0.309367,95928.0,95927.0,0.0468]
[1740379345383,0.33006097,95928.0,95927.0,0.0468]
[1740379345605,0.36217361,95928.0,95927.0,0.0468]
[1740379346058,0.90888761,95928.0,95927.0,0.0468]
[1740379346364,0.156373,95924.0,95923.0,0.0759]
[1740379346764,0.146261,95919.0,95918.0,0.0479]
[1740379347186,1.483287,95919.0,95918.0,0.05548293]
[1740379347388,2.19111885,95919.0,95918.0,0.00758293]
[1740379347592,0.156398,95909.0,95908.0,0.0795]
[1740379348824,0.156398,95909.0,95908.0,0.0815]
[1740379350563,0.156398,95909.0,95908.0,0.0835]
[1740379351996,0.306398,95909.0,95908.0,0.0851998]
[1740379354215,0.32867236,95909.0,95908.0,0.0056998]
[1740379354704,0.4240967,95909.0,95908.0,0.0056998]
[1740379355012,2.5745977,95909.0,95908.0,0.0036998]
[1740379355516,2.5745977,95909.0,95908.0,0.0016998]
[1740379355835,2.67724339,95909.0,95908.0,0.0016998]
[1740379356642,2.68124339,95909.0,95908.0,0.0016998]
[1740379357078,2.67824339,95909.0,95908.0,0.0016998]
[1740379357562,2.68224339,95909.0,95908.0,0.0016998]
[1740379357765,2.68624339,95909.0,95908.0,0.0016998]
[1740379359802,3.01214339,95909.0,95908.0,0.0016998]
[1740379360009,0.16454085,95908.0,95889.0,0.0453]
[1740379360219,0.306429,95890.0,95889.0,0.0453]
[1740379361816,0.306429,95890.0,95889.0,0.0463]
[1740379362810,0.306429,95890.0,95889.0,0.0473]
[1740379365047,0.3259,95899.0,95893.0,0.1294]
[1740379365301,0.3259,95899.0,95898.0,0.1294]
[1740379365730,0.3259,95899.0,95898.0,0.13700502]
[1740379366346,0.4779,95899.0,95898.0,0.13700502]
[1740379366724,0.4759,95899.0,95898.0,0.13700502]
[1740379367368,0.4759,95899.0,95898.0,0.1324]
[1740379367753,0.4759,95899.0,95898.0,0.14000502]
[1740379368654,0.15,95899.0,95898.0,0.14200502]
[1740379374596,0.14917091,95899.0,95898.0,0.29842102]
[1740379374804,0.208513,95917.0,95899.0,0.0757]
[1740379375005,0.01454085,95918.0,95900.0,0.0464]
[1740379375208,0.20916785,95910.0,95901.0,0.082]
[1740379375404,0.01454085,95918.0,95901.0,0.082]
[1740379375593,0.156399,95909.0,95903.0,0.082]
[1740379375787,0.156398,95910.0,95903.0,0.082]
[1740379375994,0.156398,95909.0,95903.0,0.082]
[1740379376399,0.1564,95908.0,95903.0,0.082]
[1740379376884,0.306401,95907.0,95903.0,0.082]
[1740379377065,0.15,95907.0,95903.0,0.082]
[1740379377832,0.001,95909.0,95903.0,0.082]
[1740379378038,0.358529,95910.0,95903.0,0.082]
[1740379378490,0.001,95908.0,95903.0,0.082]
[1740379378686,0.151,95908.0,95903.0,0.082]
[1740379378919,0.15,95908.0,95903.0,0.082]
[1740379379891,0.157399,95908.0,95903.0,0.082]
[1740379380302,0.001,95908.0,95903.0,0.082]
[1740379380676,0.157399,95908.0,95903.0,0.082]
[1740379380793,0.001,95908.0,95903.0,0.082]
[1740379380995,0.15,95906.0,95903.0,0.082]
[1740379382617,0.15,95909.0,95903.0,0.082]
[1740379383260,0.156399,95908.0,95903.0,0.082]
[1740379385497,0.15,95906.0,95903.0,0.083]
[1740379385719,0.1564,95908.0,95903.0,0.083]
[1740379386461,0.1564,95908.0,95903.0,0.082]
[1740379386930,0.1564,95908.0,95903.0,0.083]
[1740379387352,0.306398,95909.0,95903.0,0.083]
[1740379387724,0.306398,95909.0,95903.0,0.085]
[1740379387931,0.15,95909.0,95903.0,0.085]
[1740379388134,0.156399,95908.0,95903.0,0.083]
[1740379388515,0.306398,95909.0,95903.0,0.084]
[1740379389029,0.306398,95909.0,95903.0,0.083]
[1740379389233,0.0008504,95908.0,95903.0,0.083]
[1740379389438,0.15,95907.0,95903.0,0.084]
[1740379389683,0.15,95907.0,95903.0,0.083]
[1740379389824,0.15,95907.0,95903.0,0.084]
[1740379390192,0.15,95907.0,95903.0,0.083]
[1740379390488,0.1508504,95908.0,95904.0,0.00722787]
[1740379390691,0.1508504,95908.0,95903.0,0.084]
[1740379390692,0.1508504,95908.0,95903.0,0.083]
[1740379390895,0.1508504,95908.0,95903.0,0.082]
[1740379391065,0.1508504,95908.0,95903.0,0.084]
[1740379391395,0.1508504,95908.0,95903.0,0.083]
[1740379391529,0.1508504,95908.0,95903.0,0.082]
[1740379391731,0.1508504,95908.0,95903.0,0.083]
[1740379392134,0.0008504,95908.0,95903.0,0.083]
[1740379392761,0.156398,95909.0,95904.0,0.001]
[1740379392966,0.156398,95909.0,95903.0,0.083]
[1740379393418,0.156398,95909.0,95903.0,0.084]
[1740379393744,0.156398,95909.0,95903.0,0.082]
[1740379393942,0.156398,95909.0,95904.0,0.001]
[1740379394235,0.156398,95909.0,95904.0,0.002]
[1740379394609,0.156398,95909.0,95904.0,0.001]
[1740379395903,0.156398,95909.0,95904.0,0.002]
[1740379396454,0.156398,95909.0,95904.0,0.001]
[1740379396657,0.156401,95908.0,95904.0,0.002]
[1740379397544,0.156401,95908.0,95903.0,0.082]
[1740379397758,0.156401,95908.0,95904.0,0.001]
[1740379397985,0.156401,95908.0,95904.0,0.002]
[1740379398475,0.156401,95908.0,95904.0,0.001]
[1740379400406,0.20853,95910.0,95904.0,0.001]
[1740379400873,0.156401,95907.0,95905.0,0.00721443]
[1740379401093,0.156401,95907.0,95904.0,0.002]
[1740379401533,0.156401,95907.0,95904.0,0.001]
[1740379401763,0.156401,95907.0,95904.0,0.002]
[1740379401958,0.156401,95907.0,95904.0,0.0037006]
[1740379402636,0.156401,95907.0,95904.0,0.0027006]
[1740379403502,0.156401,95907.0,95904.0,0.0037006]
[1740379403973,0.156401,95907.0,95904.0,0.0027006]
[1740379404201,0.156401,95907.0,95904.0,0.0047006]
[1740379405406,0.156404,95906.0,95904.0,0.0047006]
[1740379405750,0.156404,95906.0,95905.0,0.00721443]
[1740379407594,0.156404,95906.0,95904.0,0.0037006]
[1740379407743,0.156404,95906.0,95905.0,0.002]
[1740379408364,0.156404,95906.0,95905.0,0.004]
[1740379409329,0.156404,95906.0,95905.0,0.002]
[1740379410196,0.156404,95906.0,95905.0,0.004]
[1740379427460,0.156404,95906.0,95905.0,0.0057006]
[1740379432088,0.156404,95906.0,95905.0,0.0820006]
[1740379432510,0.0008503,95911.0,95905.0,0.0820006]
[1740379432722,0.156399,95909.0,95905.0,0.0820006]
[1740379432985,0.1564,95908.0,95905.0,0.0820006]
[1740379433362,0.156402,95907.0,95905.0,0.0820006]
[1740379433576,0.156402,95907.0,95906.0,0.00647693]
[1740379433740,0.156402,95907.0,95905.0,0.0780006]
[1740379434197,0.156402,95907.0,95906.0,0.00647693]
[1740379434599,0.156403,95906.0,95905.0,0.0780006]
[1740379434788,0.156403,95906.0,95905.0,0.0800006]
[1740379435248,0.156403,95906.0,95905.0,0.0780006]
[1740379436664,0.156403,95906.0,95905.0,0.0790006]
[1740379436842,0.156403,95906.0,95905.0,0.0780006]
[1740379437015,0.156403,95906.0,95905.0,0.0800006]
[1740379437399,0.156403,95906.0,95905.0,0.0820006]
[1740379440426,0.156403,95906.0,95905.0,0.0884784]
[1740379449858,0.156403,95906.0,95905.0,0.0875794]
[1740379450283,0.1572533,95906.0,95905.0,0.0875794]
[1740379456436,0.1572533,95906.0,95905.0,0.0112794]
[1740379461106,0.0008503,95906.0,95905.0,0.0943794]
[1740379473392,0.0008503,95906.0,95905.0,0.2507834]
[1740379474226,0.0008503,95906.0,95905.0,0.2974834]
[1740379474432,0.0008503,95906.0,95905.0,0.40012909]
[1740379475405,0.0008503,95906.0,95905.0,0.39612909]
[1740379475856,0.0008503,95906.0,95905.0,0.40212909]
[1740379476235,0.0008503,95906.0,95905.0,0.40012909]
[1740379476641,0.0008503,95906.0,95905.0,0.40512909]
[1740379478487,0.0008503,95906.0,95905.0,0.24872509]
[1740379478699,0.0008503,95906.0,95905.0,0.1460794]
[1740379479438,0.1572533,95906.0,95905.0,0.1460794]
[1740379479678,0.0008503,95906.0,95905.0,0.1460794]
[1740379480004,0.1572533,95906.0,95905.0,0.1460794]
[1740379488666,0.1572533,95906.0,95905.0,0.0629794]
[1740379488868,0.05116801,95908.0,95905.0,0.0162794]
[1740379489064,0.156403,95906.0,95905.0,0.0162794]
[1740379489548,0.156403,95906.0,95905.0,0.0098016]
[1740379490365,0.156403,95906.0,95905.0,0.0048016]
[1740379490814,0.156403,95906.0,95905.0,0.0078016]
[1740379491010,0.156403,95906.0,95905.0,0.0038016]
[1740379491186,0.156403,95906.0,95905.0,0.0068016]
[1740379491549,0.156403,95906.0,95905.0,0.0038016]
[1740379491745,0.156403,95906.0,95905.0,0.0068016]
[1740379492109,0.156403,95906.0,95905.0,0.0038016]
[1740379492510,0.156403,95906.0,95905.0,0.0068016]
[1740379496935,0.1572529,95906.0,95905.0,0.0068016]
[1740379506790,0.16378106,95906.0,95905.0,0.0068016]
[1740379524880,0.16378106,95906.0,95905.0,0.0822016]
[1740379525291,0.1572529,95906.0,95905.0,0.0822016]
[1740379529394,0.1572529,95906.0,95905.0,0.1283016]
[1740379529603,0.0008499,95906.0,95905.0,0.38735129]
[1740379529812,0.0008499,95906.0,95905.0,0.39382909]
[1740379530785,0.0008499,95906.0,95905.0,0.39082909]
[1740379530984,0.0008499,95906.0,95905.0,0.38782909]
[1740379531213,0.0028499,95906.0,95905.0,0.40182909]
[1740379534441,0.0018499,95906.0,95905.0,0.39809261]
[1740379534639,0.0008499,95906.0,95905.0,0.39709261]
[1740379534844,0.0008499,95906.0,95905.0,0.40409261]
[1740379535022,0.0008499,95906.0,95905.0,0.39809261]
[1740379535644,0.0008499,95906.0,95905.0,0.40182909]
[1740379540316,0.0008499,95906.0,95905.0,0.4050922]
[1740379540956,0.0008499,95906.0,95905.0,0.7264922]
[1740379543152,9e-07,95906.0,95905.0,0.8764922]
[1740379543353,0.0008499,95908.0,95907.0,0.306401]
[1740379543593,0.0008499,95908.0,95907.0,0.53584669]
[1740379543802,0.0008499,95908.0,95907.0,0.56232068]
[1740379544944,0.0008499,95908.0,95907.0,0.56932068]
[1740379545548,0.0008499,95908.0,95907.0,0.57632068]
[1740379545746,0.0008499,95908.0,95907.0,0.57958379]
[1740379546800,0.0008499,95908.0,95907.0,0.90098379]
[1740379548615,0.0008499,95908.0,95907.0,1.13526379]
[1740379549900,0.0008499,95908.0,95907.0,1.68126379]
[1740379552523,0.0008499,95908.0,95907.0,1.70246117]
[1740379554289,0.0008499,95908.0,95907.0,1.68246117]
[1740379554463,0.0008499,95908.0,95907.0,1.53374017]
[1740379554686,0.0008499,95908.0,95907.0,1.35486279]
[1740379555049,0.0008499,95908.0,95907.0,0.68974279]
[1740379555050,0.1572489,95908.0,95907.0,0.68974279]
[1740379555742,0.1572489,95908.0,95907.0,0.67179968]
[1740379556175,0.1572489,95908.0,95907.0,0.67879968]
[1740379556857,0.1572489,95908.0,95907.0,0.67179968]
[1740379556988,0.1572489,95908.0,95907.0,0.66479968]
[1740379557191,0.1572489,95908.0,95907.0,0.67179968]
[1740379557399,0.0008499,95908.0,95907.0,0.66479968]
[1740379557598,0.0008499,95908.0,95907.0,0.67079968]
[1740379557802,0.1572489,95908.0,95907.0,0.67079968]
[1740379558411,0.1572489,95908.0,95907.0,0.67679968]
[1740379558832,0.1572489,95908.0,95907.0,0.35539968]
[1740379559035,0.1572489,95908.0,95907.0,0.34939968]
[1740379559236,0.1572489,95908.0,95907.0,0.35639968]
[1740379563135,0.1572489,95908.0,95907.0,0.12211968]
[1740379564440,0.1572489,95908.0,95907.0,0.01947399]
[1740379564854,0.1572489,95908.0,95907.0,0.013]
[1740379565372,0.16377759,95908.0,95907.0,0.006]
[1740379565787,0.16377759,95908.0,95907.0,0.012]
[1740379566305,0.00737859,95908.0,95906.0,0.0016998]
[1740379566505,0.156401,95907.0,95906.0,0.0016998]
[1740379567770,0.156401,95907.0,95906.0,0.0026998]
[1740379567999,0.00737859,95908.0,95906.0,0.0026998]
[1740379568181,0.0008499,95908.0,95907.0,0.31357777]
[1740379568405,0.0008499,95908.0,95907.0,0.16213418]
[1740379568558,0.0008499,95908.0,95907.0,0.31978622]
[1740379568761,0.0008499,95908.0,95907.0,0.31853518]
[1740379569350,0.00737721,95908.0,95907.0,0.32253518]
[1740379569756,0.00737721,95908.0,95907.0,0.32553518]
[1740379570196,0.15,95921.0,95907.0,0.16913418]
[1740379570411,0.15,95921.0,95910.0,0.156396]
[1740379570622,0.15,95921.0,95911.0,0.10264569]
[1740379570847,0.15,95921.0,95911.0,0.10885032]
[1740379571685,0.156375,95923.0,95911.0,0.10885032]
[1740379571686,0.15,95922.0,95911.0,0.10885032]
[1740379573251,0.306374,95924.0,95911.0,0.10885032]
[1740379574042,0.306374,95924.0,95911.0,0.26524432]
[1740379574245,0.15,95924.0,95912.0,0.156393]
[1740379574449,0.15,95924.0,95913.0,0.10264569]
[1740379574793,0.15,95924.0,95913.0,0.10884858]
[1740379575048,0.004179,95940.0,95914.0,0.08235094]
[1740379575181,0.004179,95940.0,95915.0,0.10264569]
[1740379575386,0.156346,95941.0,95927.0,0.156367]
[1740379575601,0.0799,95945.0,95928.0,0.10264569]
[1740379575851,0.156346,95941.0,95930.0,0.156362]
[1740379576157,0.15,95940.0,95931.0,0.0061872]
[1740379576570,0.15,95940.0,95929.0,0.156365]
[1740379576571,0.15,95939.0,95929.0,0.156365]
[1740379576782,0.15,95939.0,95931.0,0.156362]
[1740379577005,0.15,95939.0,95932.0,0.15636]
[1740379577210,0.15,95939.0,95932.0,0.16254633]
[1740379577792,0.001,95941.0,95940.0,0.156347]
[1740379578208,0.001,95941.0,95940.0,0.16252465]
[1740379578426,0.001,95941.0,95940.0,0.00617765]
[1740379579099,0.15,95952.0,95938.0,0.16403]
[1740379579273,0.15,95952.0,95940.0,0.00617765]
[1740379579648,0.306328,95952.0,95941.0,0.00617678]
[1740379579982,0.15,95952.0,95941.0,0.00617678]
[1740379580212,0.15,95954.0,95943.0,0.156342]
[1740379580570,0.306325,95954.0,95944.0,0.00617417]
[1740379580783,0.001,95952.0,95944.0,0.00617417]
[1740379580980,0.001,95952.0,95940.0,0.156347]
[1740379581137,0.001,95952.0,95945.0,0.0061733]
[1740379581351,0.001,95952.0,95941.0,0.156345]
[1740379581549,0.001,95952.0,95939.0,0.208465]
[1740379581550,0.001,95952.0,95946.0,0.00617243]
[1740379581749,0.001,95952.0,95945.0,0.156338]
[1740379581948,0.001,95952.0,95947.0,0.00617156]
[1740379582198,0.0008499,95955.0,95939.0,0.00125066]
[1740379582411,0.15,95953.0,95948.0,0.00617068]
[1740379582612,0.15,95953.0,95940.0,0.25899269]
[1740379582804,0.15,95953.0,95949.0,0.00616981]
[1740379583021,0.15,95953.0,95940.0,0.25899269]
[1740379583227,0.15,95953.0,95950.0,0.00616894]
[1740379583437,0.15,95953.0,95940.0,0.25899269]
[1740379583642,0.001,95952.0,95940.0,0.10264569]
[1740379583857,0.001,95952.0,95941.0,0.00617678]
[1740379584011,0.15,95953.0,95941.0,0.10882247]
[1740379584420,0.156328,95952.0,95941.0,0.10882247]
[1740379584648,0.15,95954.0,95941.0,0.10882247]
[1740379584808,0.156332,95950.0,95941.0,0.10882247]
[1740379585211,0.15,95952.0,95941.0,0.10882247]
[1740379585449,0.15,95954.0,95941.0,0.10882247]
[1740379585450,0.15633,95951.0,95941.0,0.10882247]
[1740379585910,0.15,95952.0,95941.0,0.10882247]
[1740379586136,0.306328,95952.0,95941.0,0.10882247]
[1740379586800,0.157329,95951.0,95941.0,0.10882247]
[1740379587258,0.001,95951.0,95941.0,0.10882247]
[1740379587463,0.156332,95950.0,95941.0,0.10882247]
[1740379588091,0.156334,95949.0,95941.0,0.10882247]
[1740379588304,0.0008499,95955.0,95941.0,0.10882247]
[1740379588612,0.156333,95949.0,95941.0,0.10264569]
[1740379588810,0.156333,95949.0,95942.0,0.00617523]
[1740379589621,0.156333,95949.0,95941.0,0.10264569]
[1740379589823,0.156333,95949.0,95943.0,0.00617436]
[1740379590160,0.156333,95949.0,95941.0,0.10264569]
[1740379590394,0.156336,95947.0,95944.0,0.00617283]
[1740379590595,0.208437,95953.0,95941.0,0.10264569]
[1740379590805,0.208441,95951.0,95945.0,0.00617196]
[1740379591030,0.208441,95951.0,95941.0,0.10264569]
[1740379591228,0.208441,95951.0,95946.0,0.00617109]
[1740379591421,0.208441,95951.0,95941.0,0.10264569]
[1740379591628,0.156334,95949.0,95941.0,0.10264569]
[1740379592427,0.156334,95949.0,95942.0,0.00617457]
[1740379592634,0.156334,95949.0,95941.0,0.10264569]
[1740379592840,0.15633,95951.0,95943.0,0.0061737]
[1740379593082,0.15,95954.0,95941.0,0.10264569]
[1740379593290,0.156332,95950.0,95941.0,0.10264569]
[1740379593494,0.156332,95950.0,95942.0,0.00617457]
[1740379593946,0.156332,95950.0,95941.0,0.10264569]
[1740379594325,0.208438,95952.0,95943.0,0.0061737]
[1740379594530,0.208438,95952.0,95942.0,0.00617457]
[1740379594738,0.156332,95950.0,95941.0,0.10264569]
[1740379595144,0.156332,95950.0,95942.0,0.00617457]
[1740379596641,0.156332,95950.0,95942.0,0.05547457]
[1740379597024,0.15,95953.0,95942.0,0.05547457]
[1740379597327,0.156333,95949.0,95942.0,0.05547457]
[1740379597747,0.208436,95953.0,95942.0,0.05547457]
[1740379598176,0.0008499,95955.0,95942.0,0.05547457]
[1740379598420,0.156328,95952.0,95942.0,0.0493]
[1740379598627,0.156328,95952.0,95943.0,0.0861737]
[1740379598812,0.001,95953.0,95950.0,0.15633]
[1740379599083,0.0008499,95955.0,95948.0,0.156333]
[1740379599258,0.0008499,95955.0,95951.0,0.10881242]
[1740379599396,0.0018499,95955.0,95952.0,0.0815]
[1740379599602,0.0018499,95955.0,95952.0,0.19031147]
[1740379600459,0.0008499,95955.0,95952.0,0.19031147]
[1740379603800,0.0008499,95955.0,95952.0,0.18414569]
[1740379604010,0.0008499,95955.0,95953.0,0.00616467]
[1740379604208,0.0008499,95955.0,95952.0,0.18414569]
[1740379604435,0.0008499,95955.0,95954.0,0.00616379]
[1740379604639,0.0008499,95955.0,95952.0,0.18414569]
[1740379604848,0.0008499,95955.0,95954.0,0.00616379]
[1740379605053,0.0008499,95955.0,95952.0,0.18414569]
[1740379605188,0.0008499,95955.0,95954.0,0.00616379]
[1740379605394,0.0008499,95955.0,95952.0,0.18414569]
[1740379605591,0.0008499,95955.0,95954.0,0.00616379]
[1740379605809,0.0008499,95955.0,95952.0,0.18414569]
[1740379606013,0.0008499,95955.0,95954.0,0.00616379]
[1740379606214,0.0008499,95955.0,95952.0,0.18414569]
[1740379606410,0.0008499,95955.0,95954.0,0.00616379]
[1740379606637,0.0008499,95955.0,95952.0,0.18414569]
[1740379606843,0.0008499,95955.0,95954.0,0.00616379]
[1740379607042,0.0008499,95955.0,95952.0,0.18414569]
[1740379607219,0.0008499,95955.0,95954.0,0.00616379]
[1740379607419,0.0008499,95955.0,95952.0,0.18414569]
[1740379607619,0.0008499,95955.0,95954.0,0.00616379]
[1740379607931,0.0008499,95955.0,95952.0,0.18414569]
[1740379608279,0.0008499,95955.0,95953.0,0.00616467]
[1740379608605,0.0008499,95955.0,95952.0,0.10264569]
[1740379608846,0.0008499,95955.0,95954.0,0.00616379]
[1740379609017,0.0008499,95955.0,95953.0,0.0757]
[1740379609274,0.0008499,95955.0,95954.0,0.00616379]
[1740379613353,0.0008499,95955.0,95954.0,0.00916379]
[1740379613570,0.0008499,95955.0,95954.0,0.01216379]
[1740379614568,0.1571729,95955.0,95954.0,0.01216379]
[1740379614788,0.3071729,95955.0,95954.0,0.006]
[1740379614961,0.7429759,95955.0,95954.0,0.006]
[1740379615160,0.7209821,95955.0,95954.0,0.006]
[1740379615383,0.3223721,95955.0,95954.0,0.006]
[1740379615762,0.15,95954.0,95931.0,0.00125074]
[1740379615975,0.156352,95937.0,95932.0,0.10264569]
[1740379616183,0.13711945,95950.0,95932.0,0.10264569]
[1740379616434,0.156354,95937.0,95932.0,0.10389644]
[1740379616671,0.156356,95935.0,95932.0,0.10264569]
[1740379617457,0.156356,95935.0,95932.0,0.10664569]
[1740379617630,0.15,95954.0,95932.0,0.10264569]
[1740379617835,0.1670491,95955.0,95933.0,0.00125075]
[1740379618042,0.15,95953.0,95934.0,0.17974569]
[1740379618240,0.0170491,95955.0,95941.0,0.0479]
[1740379618241,0.0160491,95955.0,95941.0,0.0479]
[1740379618447,0.0160491,95955.0,95942.0,0.10264569]
[1740379618448,0.156326,95953.0,95942.0,0.10264569]
[1740379618650,0.156328,95952.0,95942.0,0.10264569]
[1740379618874,0.156325,95954.0,95942.0,0.10264569]
[1740379619109,0.0160491,95955.0,95943.0,0.08155063]
[1740379619234,0.0160491,95955.0,95944.0,0.10389626]
[1740379619462,0.0170491,95955.0,95944.0,0.10389626]
[1740379619705,0.0170491,95955.0,95944.0,0.10264569]
[1740379619943,0.156326,95953.0,95944.0,0.10264569]
[1740379620147,0.15633,95951.0,95944.0,0.10264569]
[1740379620353,0.20890891,95954.0,95943.0,0.0803]
[1740379620605,0.156341,95944.0,95943.0,0.10264569]
[1740379620808,0.156344,95942.0,95941.0,0.0479]
[1740379622185,0.156344,95942.0,95941.0,0.0549]
[1740379622594,0.156344,95942.0,95941.0,0.0479]
[1740379623005,0.156344,95942.0,95941.0,0.0529]
[1740379623647,0.156344,95942.0,95941.0,0.0569]
[1740379628299,0.208456,95944.0,95941.0,0.0569]
[1740379628300,0.156342,95944.0,95941.0,0.0569]
[1740379628513,0.156344,95942.0,95941.0,0.06229711]
[1740379628877,0.156344,95942.0,95941.0,0.0569]
[1740379629284,0.156344,95942.0,95941.0,0.0479]
[1740379629497,0.0160491,95955.0,95941.0,0.15454569]
[1740379629694,0.0160491,95955.0,95943.0,0.0819]
[1740379629901,0.0160491,95955.0,95944.0,0.10389624]
[1740379630100,0.0160491,95955.0,95944.0,0.10929074]
[1740379630287,0.156326,95953.0,95944.0,0.10929074]
[1740379630486,0.0160491,95955.0,95944.0,0.10804019]
[1740379630704,0.0160491,95955.0,95944.0,0.10929074]
[1740379630908,0.15633,95951.0,95944.0,0.10929074]
[1740379631117,0.15633,95951.0,95944.0,0.10804019]
[1740379631320,0.0160491,95955.0,95944.0,0.10804019]
[1740379631321,0.156332,95950.0,95944.0,0.10804019]
[1740379632229,0.15633,95951.0,95944.0,0.10904019]
[1740379632481,0.156331,95950.0,95944.0,0.10904019]
[1740379632856,0.156331,95950.0,95944.0,0.10804019]
[1740379633053,0.156331,95950.0,95944.0,0.10904019]
[1740379633411,0.208433,95954.0,95944.0,0.10904019]
[1740379633686,0.156332,95950.0,95944.0,0.10904019]
[1740379633892,0.156333,95949.0,95944.0,0.10904019]
[1740379634093,0.0160491,95955.0,95944.0,0.10904019]
[1740379634311,0.15633,95951.0,95944.0,0.10929074]
[1740379634501,0.208436,95953.0,95944.0,0.10804019]
[1740379634754,0.156328,95952.0,95945.0,0.00125058]
[1740379634962,0.156328,95952.0,95946.0,0.10264569]
[1740379635165,0.01609211,95955.0,95946.0,0.10803845]
[1740379635399,0.01609211,95955.0,95949.0,0.1273]
[1740379635639,0.00089291,95955.0,95954.0,0.156324]
[1740379635847,0.00089291,95955.0,95954.0,0.25896969]
[1740379636055,0.00089291,95955.0,95954.0,0.10264569]
[1740379636263,0.00089291,95955.0,95954.0,0.10928194]
[1740379636465,0.00089291,95955.0,95954.0,0.26560594]
[1740379636674,0.00089291,95955.0,95954.0,0.26435548]
[1740379637106,0.00089291,95955.0,95954.0,0.10803148]
[1740379637446,0.00089291,95955.0,95954.0,0.11303148]
[1740379637857,0.00089291,95955.0,95954.0,0.26935548]
[1740379638407,0.00089291,95955.0,95954.0,0.27535548]
[1740379640116,0.00089291,95955.0,95954.0,0.35275548]
[1740379640521,0.00089291,95955.0,95954.0,0.19643148]
[1740379640757,0.00089291,95955.0,95954.0,0.3540059]
[1740379640967,0.00089291,95955.0,95954.0,0.19643148]
[1740379641464,0.00089291,95955.0,95954.0,0.1976819]
[1740379641906,0.00089291,95955.0,95954.0,0.19643148]
[1740379650021,0.00089291,95955.0,95954.0,0.19768194]
[1740379651232,0.00089291,95955.0,95954.0,0.40360594]
[1740379651373,0.00089291,95955.0,95954.0,0.40235548]
[1740379652027,0.00089291,95955.0,95954.0,0.39635548]
[1740379652391,0.00089291,95955.0,95954.0,0.40335548]
[1740379652570,0.00089291,95955.0,95954.0,0.39835548]
[1740379652774,0.00089291,95955.0,95954.0,0.40335548]
[1740379656200,0.00089291,95955.0,95954.0,0.4066175]
[1740379662538,0.00089291,95955.0,95954.0,0.8780175]
[1740379663327,0.00089291,95955.0,95954.0,0.8710175]
[1740379663702,0.00089291,95955.0,95954.0,0.8730175]
[1740379664045,0.00089291,95955.0,95954.0,0.8800175]
[1740379664199,0.00089291,95955.0,95954.0,0.8730175]
[1740379664403,0.00089291,95955.0,95954.0,0.8876975]
[1740379665666,0.00089291,95955.0,95954.0,0.90889582]
[1740379665793,0.00089291,95955.0,95954.0,0.90189582]
[1740379666196,0.00089291,95955.0,95954.0,0.90889582]
[1740379667060,0.00089291,95955.0,95954.0,0.9924655]
[1740379667582,0.00089291,95955.0,95954.0,0.9854655]
[1740379668016,0.00089291,95955.0,95954.0,0.9924655]
[1740379669236,0.00089291,95955.0,95954.0,0.98920348]
[1740379669667,0.00089291,95955.0,95954.0,0.98220348]
[1740379669801,0.00089291,95955.0,95954.0,0.98920348]
[1740379672848,0.00089291,95955.0,95954.0,0.99698889]
[1740379673209,0.00089291,95955.0,95954.0,1.00546812]
[1740379673390,0.00089291,95955.0,95954.0,1.23962812]
[1740379676933,0.00089291,95955.0,95954.0,1.33306098]
[1740379679036,0.00089291,95955.0,95954.0,1.32784299]
[1740379679862,0.00089291,95955.0,95954.0,1.23441013]
[1740379681306,0.00089291,95955.0,95954.0,1.22673013]
[1740379681529,0.00089291,95955.0,95954.0,1.23441013]
[1740379684039,0.00089291,95955.0,95954.0,1.23962812]
[1740379685850,0.00089291,95955.0,95954.0,1.23441013]
[1740379686437,0.15,96005.0,95955.0,0.15]
[1740379686636,0.15,96005.0,95975.0,0.156289]
[1740379686637,4.301e-05,95979.0,95975.0,0.156289]
[1740379686856,4.301e-05,95979.0,95976.0,0.26018383]
[1740379687076,4.301e-05,95979.0,95976.0,0.26416792]
[1740379687267,4.301e-05,95979.0,95976.0,0.10787992]
[1740379687678,4.301e-05,95979.0,95976.0,0.26416792]
[1740379687883,4.301e-05,95979.0,95977.0,0.156286]
[1740379688021,4.301e-05,95979.0,95978.0,0.10264569]
[1740379688223,4.301e-05,95979.0,95978.0,0.10787818]
[1740379688429,4.301e-05,95979.0,95978.0,0.10912833]
[1740379689490,4.301e-05,95979.0,95978.0,0.26541333]
[1740379689742,4.301e-05,95979.0,95978.0,0.27016318]
[1740379690141,0.00089311,95979.0,95978.0,0.27716318]